bitfinex-derivatives/quotes_SOLF0:USTF0_20250216
["timestamp","ask_amount","ask_price","bid_price","bid_amount"]
[1739702165104,12.53002661,193.49,193.45,5.1685]
[1739702165401,7.36252661,193.49,193.42,9.04528897]
[1739702165706,5.168,193.47,193.42,1.68276236]
[1739702166107,5.168,193.47,193.43,5.169]
[1739702166407,5.1683,193.46,193.43,5.169]
[1739702166602,7.36252661,193.47,193.42,1.68276236]
[1739702167111,5.1686,193.45,193.42,1.68276236]
[1739702170101,7.36252661,193.47,193.42,0.03416236]
[1739702170307,5.169,193.44,193.42,0.03416236]
[1739702170704,12.53112661,193.45,193.42,5.20336236]
[1739702171004,7.36252661,193.47,193.42,0.03416236]
[1739702171202,5.1682,193.46,193.43,5.169]
[1739702171605,5.1682,193.46,193.43,5.20375555]
[1739702173806,7.36252661,193.49,193.44,5.1688]
[1739702174006,5.168,193.47,193.44,5.1688]
[1739702175010,5.1683,193.46,193.43,5.20365555]
[1739702175211,7.36252661,193.47,193.43,0.03475555]
[1739702176312,5.1684,193.46,193.43,0.03475555]
[1739702177809,5.1688,193.44,193.43,0.03475555]
[1739702182118,5.1686,193.45,193.43,0.03475555]
[1739702182416,7.36252661,193.47,193.43,0.03475555]
[1739702184021,5.1688,193.44,193.43,0.03475555]
[1739702201438,7.36252661,193.47,193.43,0.03475555]
[1739702201634,5.1687,193.45,193.43,0.03475555]
[1739702202538,5.1688,193.44,193.43,0.03475555]
[1739702203540,7.36252661,193.47,193.43,0.03475555]
[1739702203738,5.1685,193.45,193.43,0.03475555]
[1739702205434,7.36252661,193.47,193.43,0.03475555]
[1739702205632,5.1683,193.46,193.43,5.20375555]
[1739702207143,5.1686,193.45,193.43,0.03475555]
[1739702212445,5.1686,193.45,193.43,5.20375555]
[1739702212842,7.36252661,193.47,193.43,0.03475555]
[1739702213050,5.1681,193.47,193.44,5.1687]
[1739702213348,7.36252661,193.49,193.43,0.03475555]
[1739702213544,5.1683,193.46,193.43,0.03475555]
[1739702213844,5.1683,193.46,193.43,5.20355555]
[1739702214446,5.1683,193.46,193.43,0.03475555]
[1739702214645,5.168,193.47,193.44,5.1687]
[1739702220953,7.36252661,193.49,193.44,5.1687]
[1739702221752,5.1676,193.49,193.46,5.1681]
[1739702222154,7.36252661,193.51,193.43,0.03475555]
[1739702222354,5.1677,193.48,193.45,5.1684]
[1739702225563,7.36252661,193.51,193.43,0.03475555]
[1739702225864,5.1675,193.49,193.46,5.1682]
[1739702226255,5.1675,193.49,193.43,0.03475555]
[1739702226863,5.1675,193.49,193.45,5.1683]
[1739702227165,5.1675,193.49,193.43,0.03475555]
[1739702227567,5.1675,193.49,193.45,5.1683]
[1739702228964,5.1675,193.49,193.46,5.1682]
[1739702230365,5.1678,193.48,193.45,5.1684]
[1739702231862,7.36252661,193.49,193.43,0.03475555]
[1739702232066,5.168,193.47,193.44,5.1687]
[1739702232767,5.1678,193.48,193.45,5.1685]
[1739702234568,12.52992661,193.49,193.47,5.1679]
[1739702235971,12.52992661,193.49,193.46,5.1681]
[1739702236868,5.1674,193.49,193.46,5.1681]
[1739702241467,7.36252661,193.51,193.47,5.1679]
[1739702241671,7.36252661,193.53,193.44,7.36252661]
[1739702241864,7.36252661,193.53,193.47,0.03616032]
[1739702242062,5.1668,193.52,193.48,5.1675]
[1739702243772,5.1668,193.52,193.47,0.03616032]
[1739702243973,5.1668,193.52,193.49,5.1673]
[1739702244163,7.36252661,193.51,193.47,0.03616032]
[1739702244363,12.53022661,193.48,193.47,0.03616032]
[1739702288306,12.53022661,193.48,193.47,6.032e-05]
[1739702288907,5.1693,193.43,193.4,1.6612]
[1739702289706,5.1693,193.42,193.4,1.6612]
[1739702289907,5.1693,193.42,193.4,1.69520605]
[1739702290608,5.20333432,193.43,193.4,6.86500605]
[1739702294009,0.03423432,193.43,193.4,1.69520605]
[1739702294406,0.03423432,193.43,193.4,9.05773266]
[1739702294607,0.03423432,193.43,193.41,1.652]
[1739702294913,0.03423432,193.43,193.42,5.1693]
[1739702300517,7.36252661,193.48,193.41,1.652]
[1739702301715,0.02134013,193.46,193.43,0.03314492]
[1739702302115,5.18974013,193.46,193.43,5.20194492]
[1739702302716,0.02134013,193.46,193.43,0.03314492]
[1739702303615,0.02134013,193.46,193.43,5.20194492]
[1739702304418,5.18954013,193.46,193.43,5.20194492]
[1739702317719,7.36252661,193.54,193.44,7.36252661]
[1739702318024,7.36252661,193.54,193.48,7.36252661]
[1739702318223,5.1664,193.53,193.48,7.36252661]
[1739702318420,7.36252661,193.54,193.48,7.36252661]
[1739702318826,12.52872661,193.54,193.5,5.1669]
[1739702320135,12.52872661,193.54,193.49,5.20703328]
[1739702320431,7.36252661,193.5,193.49,0.03963328]
[1739702321028,12.52972661,193.5,193.49,0.03963328]
[1739702334048,5.1693,193.42,193.38,1.5088]
[1739702335251,5.1693,193.42,193.38,0.03469847]
[1739702335252,5.1701,193.39,193.38,0.03469847]
[1739702337050,12.53242661,193.4,193.38,0.03469847]
[1739702338348,5.1701,193.39,193.38,0.03469847]
[1739702346053,12.53242661,193.4,193.38,0.03469847]
[1739702347953,5.1701,193.39,193.38,0.03469847]
[1739702349148,7.36252661,193.4,193.38,0.03469847]
[1739702349355,12.53242661,193.4,193.38,0.03469847]
[1739702350150,5.1701,193.39,193.38,0.03469847]
[1739702354555,7.36252661,193.4,193.38,0.03469847]
[1739702354751,12.53242661,193.4,193.38,0.03469847]
[1739702356255,5.1699,193.4,193.38,0.03469847]
[1739702356558,7.40012566,193.42,193.38,0.03469847]
[1739702356752,0.03759905,193.42,193.38,0.03469847]
[1739702357453,5.20699905,193.42,193.39,5.1699]
[1739702357653,0.03759905,193.42,193.38,0.03469847]
[1739702358252,0.03759905,193.42,193.4,5.1696]
[1739702358457,0.03759905,193.42,193.38,7.39722508]
[1739702358659,0.03759905,193.42,193.38,9.02032508]
[1739702359459,0.03759905,193.42,193.41,5.1696]
[1739702362363,0.03759905,193.42,193.39,5.1699]
[1739702362561,0.03759905,193.42,193.38,9.02032508]
[1739702363163,0.03759905,193.42,193.4,5.1697]
[1739702363466,0.03759905,193.42,193.38,9.02032508]
[1739702364263,0.03759905,193.42,193.4,5.1696]
[1739702369368,0.03759905,193.42,193.41,5.1696]
[1739702370472,0.03759905,193.42,193.38,9.02032508]
[1739702370669,0.03759905,193.42,193.4,5.1698]
[1739702373572,0.03759905,193.42,193.41,5.1696]
[1739702377477,0.03759905,193.42,193.4,7.36252661]
[1739702377676,7.40012566,193.42,193.38,0.03469847]
[1739702377872,7.36252661,193.39,193.38,0.03469847]
[1739702378068,12.53262661,193.39,193.38,0.03469847]
[1739702381679,5.1709,193.36,193.35,28.56439245]
[1739702382179,5.1709,193.36,193.3,7.36252661]
[1739702382384,5.1709,193.36,193.32,5.1717]
[1739702382878,5.20544403,193.36,193.32,5.21135876]
[1739702383678,0.03454403,193.36,193.32,5.21135876]
[1739702383880,5.1712,193.35,193.32,5.21135876]
[1739702384182,5.1712,193.35,193.32,0.03965876]
[1739702384582,5.1717,193.34,193.32,0.03965876]
[1739702387683,5.1712,193.35,193.32,0.03965876]
[1739702387986,0.03454403,193.36,193.32,5.21165876]
[1739702388588,5.20554403,193.36,193.32,5.21165876]
[1739702388787,5.20554403,193.36,193.33,5.1716]
[1739702389082,0.03454403,193.36,193.32,0.03965876]
[1739702389289,0.03454403,193.36,193.32,7.40218537]
[1739702389491,0.03454403,193.36,193.34,5.1714]
[1739702390089,0.03454403,193.36,193.35,5.1712]
[1739702400805,7.36252661,193.45,193.34,7.36252661]
[1739702401006,7.36252661,193.45,193.38,7.36252661]
[1739702401304,12.53122661,193.45,193.4,5.1698]
[1739702401996,0.03950171,193.44,193.41,0.03942392]
[1739702402201,5.1691,193.43,193.41,0.03942392]
[1739702407711,5.1693,193.42,193.41,0.03942392]
[1739702414819,5.17,193.4,193.35,5.1711]
[1739702415121,7.36252661,193.38,193.32,5.1718]
[1739702415317,12.53312661,193.38,193.32,5.1718]
[1739702415521,7.36252661,193.38,193.32,5.1718]
[1739702415921,0.03506519,193.37,193.33,0.03511267]
[1739702416720,5.20596519,193.37,193.33,0.03511267]
[1739702416922,7.36252661,193.36,193.33,0.03511267]
[1739702418117,12.53352661,193.36,193.33,0.03511267]
[1739702418422,7.36252661,193.36,193.33,0.03511267]
[1739702418621,12.53342661,193.36,193.33,0.03511267]
[1739702419019,7.36252661,193.36,193.33,0.03511267]
[1739702419420,0.03506519,193.37,193.33,5.20681267]
[1739702419921,5.20576519,193.37,193.33,5.20681267]
[1739702421421,0.03506519,193.37,193.35,5.1711]
[1739702421620,0.03506519,193.37,193.33,0.03511267]
[1739702421621,0.03506519,193.37,193.34,7.36252661]
[1739702422319,0.03506519,193.37,193.35,5.1712]
[1739702422625,0.03506519,193.37,193.34,7.36252661]
[1739702423221,0.03506519,193.37,193.36,5.1709]
[1739702426826,0.03506519,193.37,193.34,7.36252661]
[1739702427126,0.03506519,193.37,193.35,5.1711]
[1739702432028,0.03506519,193.37,193.36,5.1709]
[1739702432828,0.03506519,193.37,193.36,12.53342661]
[1739702452239,0.03506519,193.37,193.36,5.1709]
[1739702452941,0.03506519,193.37,193.34,15.81702661]
[1739702453142,0.03506519,193.37,193.33,0.03511267]
[1739702454642,5.171,193.36,193.33,5.20681267]
[1739702456846,5.20576519,193.37,193.33,5.20681267]
[1739702458654,5.20576519,193.37,193.33,0.03511267]
[1739702458949,5.20576519,193.37,193.34,5.1714]
[1739702460973,0.03506519,193.37,193.34,5.1714]
[1739702461355,0.03506519,193.37,193.33,0.03511267]
[1739702461552,0.03506519,193.37,193.36,5.1709]
[1739702465158,0.03506519,193.37,193.36,12.53342661]
[1739702479564,0.03506519,193.37,193.36,5.1709]
[1739702480865,0.03506519,193.37,193.34,7.36252661]
[1739702481066,5.20576519,193.37,193.33,5.20671267]
[1739702481565,5.20576519,193.37,193.34,5.1713]
[1739702481566,0.03506519,193.37,193.34,5.1713]
[1739702482060,0.03506519,193.37,193.36,5.1709]
[1739702486966,0.03506519,193.37,193.34,7.36252661]
[1739702487269,0.03506519,193.37,193.34,5.1712]
[1739702488468,0.03506519,193.37,193.35,5.1712]
[1739702490370,0.03506519,193.37,193.36,5.1709]
[1739702490575,0.03506519,193.37,193.36,12.53342661]
[1739702504086,0.03506519,193.37,193.36,5.1709]
[1739702511490,0.03506519,193.37,193.36,12.53342661]
[1739702527802,0.03506519,193.37,193.36,7.36252661]
[1739702530707,0.03506519,193.37,193.36,12.53342661]
[1739702548420,5.1683,193.46,193.41,5.1695]
[1739702548719,5.1683,193.46,193.41,12.53202661]
[1739702549517,0.03770397,193.45,193.42,0.03470249]
[1739702549716,5.20620397,193.45,193.42,0.03470249]
[1739702551121,5.20620397,193.45,193.42,5.20390249]
[1739702552016,0.03770397,193.45,193.43,5.169]
[1739702555322,0.03770397,193.45,193.42,0.03470249]
[1739702555521,0.03770397,193.45,193.42,5.20390249]
[1739702556422,5.169,193.43,193.42,0.03470249]
[1739702556624,7.36252661,193.44,193.37,7.36252661]
[1739702557124,5.1695,193.42,193.37,7.36252661]
[1739702557621,7.36252661,193.44,193.37,7.36252661]
[1739702557826,5.1696,193.41,193.38,0.03612072]
[1739702558323,5.1699,193.4,193.38,0.03612072]
[1739702560521,0.03407082,193.41,193.38,0.03612072]
[1739702561321,5.1699,193.4,193.38,0.03612072]
[1739702563224,0.03407082,193.41,193.38,0.03612072]
[1739702563426,5.1698,193.4,193.38,0.03612072]
[1739702569536,0.03407082,193.41,193.38,0.03612072]
[1739702569730,5.1701,193.39,193.38,0.03612072]
[1739702588753,0.03407082,193.41,193.38,0.03612072]
[1739702589456,0.03407082,193.41,193.39,5.1701]
[1739702590256,0.03407082,193.41,193.4,5.1698]
[1739702599072,87.9910487,193.46,193.42,5.1691]
[1739702599375,82.8225487,193.46,193.42,5.1691]
[1739702599773,87.9909487,193.46,193.42,5.1691]
[1739702600175,88.02599219,193.46,193.42,5.20822062]
[1739702605375,5.1688,193.44,193.42,0.03912062]
[1739702606778,5.169,193.43,193.42,0.03912062]
[1739702639205,5.169,193.43,193.42,2.062e-05]
[1739702649216,7.36252661,193.44,193.34,5.1714]
[1739702649412,7.36252661,193.37,193.33,1.5221]
[1739702650507,7.39722314,193.37,193.33,1.55906919]
[1739702651118,5.1714,193.34,193.33,1.55906919]
[1739702656915,5.1714,193.34,193.33,0.03696919]
[1739702672330,7.36252661,193.35,193.33,0.03696919]
[1739702673235,5.1714,193.34,193.33,0.03696919]
[1739702680538,12.53392661,193.35,193.33,0.03696919]
[1739702680840,7.36252661,193.35,193.33,0.03696919]
[1739702681139,5.1714,193.34,193.33,0.03696919]
[1739702688341,7.39722314,193.37,193.33,0.03696919]
[1739702688848,7.39722314,193.37,193.33,1.56926919]
[1739702689847,0.03469653,193.37,193.33,1.56926919]
[1739702690043,0.03469653,193.37,193.35,5.1711]
[1739702692250,0.03469653,193.37,193.33,8.9317958]
[1739702692552,0.03469653,193.37,193.36,5.1709]
[1739702693452,193.0,193.4,193.33,8.9317958]
[1739702693658,86.58784098,193.41,193.38,5.1704]
[1739702693957,86.58784098,193.41,193.35,7.36252661]
[1739702694350,86.58784098,193.41,193.35,12.53352661]
[1739702694546,5.1701,193.39,193.35,12.53352661]
[1739702694750,5.1701,193.39,193.36,0.03342192]
[1739702695052,5.1701,193.39,193.36,5.20422192]
[1739702695254,5.20703716,193.4,193.36,5.20422192]
[1739702695453,5.20703716,193.4,193.36,0.03342192]
[1739702697159,5.20703716,193.4,193.37,5.1706]
[1739702697355,5.20703716,193.4,193.36,0.03342192]
[1739702697552,5.1701,193.39,193.36,0.03342192]
[1739702698258,5.1701,193.39,193.36,5.20412192]
[1739702698558,5.20703716,193.4,193.36,5.20412192]
[1739702700358,0.03713716,193.4,193.36,5.20412192]
[1739702700560,0.03713716,193.4,193.36,0.03342192]
[1739702701959,5.1706,193.37,193.36,0.03342192]
[1739702703357,5.1704,193.38,193.36,0.03342192]
[1739702704259,0.03713716,193.4,193.36,0.03342192]
[1739702704563,0.03713716,193.4,193.37,5.1704]
[1739702705564,5.20703716,193.4,193.37,5.1704]
[1739702706762,0.03713716,193.4,193.37,5.1706]
[1739702707955,0.03713716,193.4,193.36,0.03342192]
[1739702709167,5.20713716,193.4,193.37,5.1706]
[1739702713775,0.03713716,193.4,193.38,5.1704]
[1739702715671,200.36252661,193.47,193.39,7.36252661]
[1739702715875,7.36252661,193.49,193.41,7.36252661]
[1739702716872,7.36252661,193.49,193.43,0.03670376]
[1739702717081,5.1684,193.46,193.43,0.03670376]
[1739702718274,5.1686,193.45,193.43,0.03670376]
[1739702719381,5.1688,193.44,193.43,0.03670376]
[1739702720272,5.1685,193.45,193.43,0.03670376]
[1739702720579,7.36252661,193.47,193.43,0.03670376]
[1739702720975,12.53052661,193.47,193.43,0.03670376]
[1739702721171,7.36252661,193.47,193.43,0.03670376]
[1739702722084,5.1682,193.46,193.43,5.20550376]
[1739702723185,5.1685,193.45,193.43,0.03670376]
[1739702723385,7.36252661,193.47,193.43,0.03670376]
[1739702723885,5.1684,193.46,193.43,5.20570376]
[1739702724885,7.36252661,193.47,193.43,5.20570376]
[1739702725086,5.1685,193.45,193.43,5.20570376]
[1739702725286,7.36252661,193.49,193.43,5.20570376]
[1739702725786,7.36252661,193.49,193.43,0.03670376]
[1739702725787,5.1682,193.47,193.43,0.03670376]
[1739702726085,7.36252661,193.49,193.43,0.03670376]
[1739702726990,5.1681,193.47,193.44,5.1685]
[1739702727384,7.36252661,193.49,193.43,7.39923037]
[1739702727585,7.36252661,193.49,193.43,12.56823037]
[1739702729188,5.1683,193.46,193.43,12.56823037]
[1739702729685,7.36252661,193.51,193.43,7.39923037]
[1739702729890,74.21187641,193.52,193.45,7.36252661]
[1739702730389,5.1672,193.5,193.45,7.36252661]
[1739702730789,74.21187641,193.52,193.45,7.36252661]
[1739702730985,5.1669,193.51,193.47,5.1678]
[1739702731387,5.1669,193.51,193.47,0.03492114]
[1739702731784,5.1669,193.51,193.47,5.20272114]
[1739702732185,5.1673,193.5,193.47,5.20272114]
[1739702732488,5.1673,193.5,193.47,0.03492114]
[1739702732989,5.1673,193.5,193.47,5.20282114]
[1739702733191,5.1673,193.5,193.47,0.03492114]
[1739702733788,74.21187641,193.52,193.47,0.03492114]
[1739702734088,5.1675,193.49,193.47,0.03492114]
[1739702735690,74.21187641,193.52,193.47,0.03492114]
[1739702735892,5.1677,193.48,193.47,0.03492114]
[1739702739492,74.21187641,193.52,193.47,0.03492114]
[1739702739693,5.1677,193.49,193.47,0.03492114]
[1739702744498,74.21187641,193.52,193.47,0.03492114]
[1739702744700,5.1677,193.48,193.47,0.03492114]
[1739702748803,5.1694,193.42,193.37,7.36252661]
[1739702749903,0.03948042,193.41,193.38,0.03855883]
[1739702750103,0.03948042,193.41,193.38,5.20885883]
[1739702751705,0.03948042,193.41,193.38,0.03855883]
[1739702752003,0.03948042,193.41,193.39,5.1701]
[1739702752400,0.03948042,193.41,193.38,5.20885883]
[1739702753403,5.20928042,193.41,193.38,0.03855883]
[1739702755805,5.1699,193.4,193.38,0.03855883]
[1739702758813,5.1701,193.39,193.38,0.03855883]
[1739702763512,12.53262661,193.39,193.38,0.03855883]
[1739702763909,5.1716,193.34,193.31,12.53472661]
[1739702764108,7.36252661,193.35,193.27,7.36252661]
[1739702765216,5.172,193.32,193.29,0.0347979]
[1739702765515,0.03427343,193.33,193.29,0.0347979]
[1739702765714,5.20607343,193.33,193.29,0.0347979]
[1739702766417,0.03427343,193.33,193.29,0.0347979]
[1739702768016,0.03427343,193.33,193.3,5.1725]
[1739702769811,0.03427343,193.33,193.32,5.172]
[1739702793444,277.36837166,193.39,193.31,7.36252661]
[1739702793640,277.36837166,193.39,193.3,4.6845]
[1739702793641,277.36837166,193.39,193.34,7.36252661]
[1739702793941,84.36837166,193.39,193.37,5.1704]
[1739702796636,0.03572419,193.4,193.39,5.1701]
[1739702797340,0.03572419,193.4,193.36,0.03831889]
[1739702798440,0.03572419,193.4,193.38,5.1702]
[1739702799845,5.20552419,193.4,193.37,5.1706]
[1739702800139,0.03572419,193.4,193.36,0.03831889]
[1739702800542,5.1703,193.39,193.36,5.20921889]
[1739702803140,5.1704,193.38,193.36,0.03831889]
[1739702803341,7.36252661,193.39,193.36,0.03831889]
[1739702804243,5.1706,193.37,193.36,0.03831889]
[1739702805247,12.53312661,193.37,193.36,0.03831889]
[1739702806549,5.172,193.33,193.29,5.1727]
[1739702806750,7.36252661,193.35,193.28,7.36252661]
[1739702807450,5.1722,193.32,193.28,12.53552661]
[1739702807646,5.1722,193.32,193.3,0.03391414]
[1739702808052,5.1722,193.31,193.3,0.03391414]
[1739702812153,5.172,193.32,193.3,0.03391414]
[1739702819660,5.1722,193.32,193.3,0.03391414]
[1739702820299,0.03753206,193.33,193.3,0.03391414]
[1739702820859,5.1722,193.32,193.3,0.03391414]
[1739702825065,0.03753206,193.33,193.3,0.03391414]
[1739702825263,5.1722,193.31,193.3,0.03391414]
[1739702829069,0.03753206,193.33,193.3,0.03391414]
[1739702829770,5.172,193.32,193.3,0.03391414]
[1739702830071,0.03753206,193.33,193.3,0.03391414]
[1739702830862,5.172,193.32,193.3,0.03391414]
[1739702831770,0.03753206,193.33,193.3,0.03391414]
[1739702832069,5.172,193.32,193.3,0.03391414]
[1739702836475,5.1722,193.31,193.3,0.03391414]
[1739702842675,7.40005867,193.33,193.3,0.03391414]
[1739702842676,5.172,193.32,193.3,0.03391414]
[1739702843484,7.40005867,193.33,193.3,0.03391414]
[1739702843685,0.03753206,193.33,193.3,0.03391414]
[1739702843884,0.03753206,193.33,193.3,5.20641414]
[1739702844781,0.03753206,193.33,193.31,5.1722]
[1739702845083,0.03753206,193.33,193.32,7.36252661]
[1739702845383,5.1704,193.38,193.34,5.1712]
[1739702846386,5.20460729,193.38,193.34,5.20986714]
[1739702846684,0.03420729,193.38,193.34,0.03866714]
[1739702847381,0.03420729,193.38,193.35,5.1711]
[1739702848180,5.20460729,193.38,193.35,5.1711]
[1739702848486,5.20460729,193.38,193.34,5.21006714]
[1739702850282,0.03420729,193.38,193.34,0.03866714]
[1739702850487,5.1712,193.35,193.34,0.03866714]
[1739702850787,0.03420729,193.38,193.34,0.03866714]
[1739702851089,5.1707,193.37,193.34,0.03866714]
[1739702851482,12.53322661,193.37,193.34,0.03866714]
[1739702852088,7.36252661,193.37,193.34,0.03866714]
[1739702852290,5.1709,193.36,193.34,0.03866714]
[1739702854289,7.36252661,193.37,193.34,0.03866714]
[1739702855383,12.53372661,193.35,193.34,0.03866714]
[1739702861802,12.53372661,193.35,193.34,6.714e-05]
[1739702876416,7.36252661,193.35,193.25,1.5803]
[1739702876719,5.1733,193.28,193.25,1.5803]
[1739702876918,5.1733,193.28,193.24,12.53642661]
[1739702877715,5.20619791,193.28,193.24,12.57026322]
[1739702879318,5.20619791,193.28,193.25,5.1738]
[1739702879518,0.03289791,193.28,193.24,7.39636322]
[1739702879917,0.03289791,193.28,193.26,5.1736]
[1739702880319,0.03289791,193.28,193.27,5.1733]
[1739702880920,0.03289791,193.28,193.25,5.1738]
[1739702881116,0.03289791,193.28,193.24,7.39636322]
[1739702882617,0.03289791,193.28,193.25,5.1736]
[1739702882818,0.03289791,193.28,193.24,7.39636322]
[1739702884119,5.1725,193.3,193.25,1.5152]
[1739702884923,5.1725,193.3,193.27,5.1731]
[1739702885124,0.03416384,193.29,193.27,5.1731]
[1739702885317,0.03416384,193.29,193.25,1.5152]
[1739702885516,0.03416384,193.29,193.28,5.173]
[1739702887527,0.03416384,193.29,193.27,5.1733]
[1739702887722,0.03416384,193.29,193.25,1.5152]
[1739702889029,5.1731,193.28,193.25,6.689]
[1739702889828,0.03416384,193.29,193.25,1.5152]
[1739702890031,5.20706384,193.29,193.26,5.1736]
[1739702891731,0.03416384,193.29,193.27,5.1733]
[1739702894131,5.172,193.32,193.26,7.36252661]
[1739702894729,5.172,193.32,193.29,5.1727]
[1739702894939,5.1715,193.34,193.28,7.36252661]
[1739702895331,0.02366381,193.33,193.29,0.0392716]
[1739702895733,0.02366381,193.33,193.3,5.1725]
[1739702896134,5.19546381,193.33,193.3,5.1725]
[1739702906254,0.02366381,193.33,193.29,0.0392716]
[1739702906450,0.02366381,193.33,193.31,5.172]
[1739702907456,67.68468192,193.36,193.3,7.36252661]
[1739702907656,67.68468192,193.36,193.31,1.6476]
[1739702908554,7.36252661,193.41,193.34,7.36252661]
[1739702908763,7.36252661,193.43,193.36,7.36252661]
[1739702908948,7.36252661,193.43,193.36,7.39741633]
[1739702909656,5.1698,193.41,193.37,5.1706]
[1739702910461,7.36252661,193.43,193.36,0.03488972]
[1739702910658,5.1699,193.4,193.36,5.20568972]
[1739702911360,5.1699,193.4,193.37,5.1706]
[1739702913260,5.1699,193.4,193.36,5.20578972]
[1739702914051,7.36252661,193.43,193.36,5.20578972]
[1739702914052,7.36252661,193.39,193.36,0.03488972]
[1739702915861,5.1706,193.37,193.36,0.03488972]
[1739702916256,5.1704,193.38,193.36,0.03488972]
[1739702916555,6.99358527,193.45,193.36,0.03488972]
[1739702916556,7.36252661,193.41,193.36,0.03488972]
[1739702918061,5.1699,193.4,193.37,5.1706]
[1739702918562,5.1699,193.4,193.36,0.03488972]
[1739702918752,5.1701,193.39,193.36,5.20568972]
[1739702922860,7.36252661,193.41,193.36,0.03488972]
[1739702923171,5.1706,193.37,193.36,0.03488972]
[1739702923463,12.53312661,193.37,193.36,0.03488972]
[1739702932867,5.1704,193.38,193.36,0.03488972]
[1739702936770,12.53272661,193.39,193.36,0.03488972]
[1739702937664,7.36252661,193.41,193.36,0.03488972]
[1739702937869,12.53212661,193.41,193.37,5.1704]
[1739702938069,7.36252661,193.41,193.37,5.1704]
[1739702939171,5.1699,193.4,193.37,5.1704]
[1739702939372,5.1699,193.4,193.36,0.03488972]
[1739702939568,5.1702,193.39,193.36,5.20568972]
[1739702939766,7.36252661,193.41,193.36,5.20568972]
[1739702940273,5.1699,193.4,193.37,5.1706]
[1739702940686,5.1699,193.4,193.36,0.03488972]
[1739702940874,7.36252661,193.41,193.36,5.20568972]
[1739702941075,5.1702,193.39,193.36,5.20568972]
[1739702942676,7.36252661,193.41,193.36,5.20568972]
[1739702942875,5.1699,193.4,193.36,5.20568972]
[1739702944174,7.36252661,193.41,193.36,0.03488972]
[1739702944376,12.53212661,193.41,193.37,5.1704]
[1739702944575,7.36252661,193.41,193.37,5.1704]
[1739702946276,5.17,193.4,193.36,5.20568972]
[1739702946976,7.36252661,193.41,193.36,0.03488972]
[1739702947177,12.53212661,193.41,193.37,5.1705]
[1739702947379,7.36252661,193.45,193.36,7.39741633]
[1739702947574,5.1689,193.44,193.36,7.36252661]
[1739702947876,5.1689,193.44,193.39,0.03404544]
[1739702948879,5.1689,193.44,193.4,5.1696]
[1739702949075,12.53102661,193.45,193.39,0.03404544]
[1739702949477,5.1685,193.45,193.39,0.03404544]
[1739702949978,5.1683,193.46,193.42,5.1691]
[1739702950877,7.36252661,193.47,193.42,5.1691]
[1739702951375,7.36252661,193.49,193.4,7.36252661]
[1739702951576,200.36252661,193.51,193.42,7.36252661]
[1739702951776,7.36252661,193.51,193.43,0.03809597]
[1739702952478,7.36252661,193.51,193.44,7.36252661]
[1739702953080,5.1672,193.5,193.46,5.1682]
[1739702954076,7.36252661,193.51,193.44,7.36252661]
[1739702954283,5.1674,193.49,193.45,5.1685]
[1739702954683,7.36252661,193.51,193.44,7.36252661]
[1739702954882,12.52962661,193.51,193.44,7.36252661]
[1739702955083,7.36252661,193.51,193.44,7.36252661]
[1739702955482,5.1674,193.5,193.46,5.1682]
[1739702955781,7.36252661,193.51,193.46,5.1682]
[1739702956083,5.1674,193.49,193.45,5.1685]
[1739702956875,7.36252661,193.51,193.43,5.20709597]
[1739702956876,5.168,193.47,193.43,5.20709597]
[1739702957285,7.36252661,193.49,193.43,0.03809597]
[1739702957481,5.1684,193.46,193.43,0.03809597]
[1739702957681,7.36252661,193.47,193.43,0.03809597]
[1739702957882,7.36252661,193.45,193.43,0.03809597]
[1739702958089,5.1688,193.44,193.43,0.03809597]
[1739702962485,5.1685,193.45,193.43,0.03809597]
[1739702962685,7.36252661,193.49,193.43,0.03809597]
[1739702963280,7.36252661,193.51,193.44,7.36252661]
[1739702963484,7.36252661,193.51,193.44,8.96362661]
[1739702963686,7.36252661,193.51,193.46,0.03946318]
[1739702963886,5.1674,193.5,193.46,5.20746318]
[1739702964584,7.36252661,193.51,193.46,5.20746318]
[1739702964790,5.1674,193.49,193.46,5.20746318]
[1739702965480,5.1674,193.49,193.46,0.03946318]
[1739702965888,7.36252661,193.51,193.46,0.03946318]
[1739702967392,5.168,193.47,193.46,0.03946318]
[1739702968294,5.1678,193.48,193.46,0.03946318]
[1739702969195,7.36252661,193.51,193.46,0.03946318]
[1739702969787,5.1675,193.49,193.46,0.03946318]
[1739702970194,7.36252661,193.51,193.46,0.03946318]
[1739702970491,5.1672,193.5,193.46,0.03946318]
[1739702970798,7.36252661,193.53,193.46,0.03946318]
[1739702970998,5.1667,193.52,193.49,5.1674]
[1739702971396,5.1663,193.54,193.5,5.1671]